Cogmind - Beta 9.4 @@@ ROGUE MODE // 2020.02.22 @ 23:09:59 Player: derk Result: Destroyed by as-87656 with Assembled Heavy Rifle Performance ------------- Evolutions (1) 500 Regions Visited (3) 600 Robots Destroyed (52) 260 Value Destroyed (1037) 1037 Prototype IDs (1) 20 Alien Tech Used (0) 0 Bonus (-295) -295 TOTAL SCORE: 2122 Bonus ------- Friendly Fire -295 Cogmind --------- Core Integrity 0/400 Matter 145/300 Energy 100/100 System Corruption 0% Temperature Cool (0) Movement Core (1100) Ox21 Location -9/Mines Parts ------- > --- POWER (1) -------- (None) > --- PROPULSION (3) --- (None) > --- UTILITY (3) ------ High-capacity Storage Unit High-capacity Storage Unit > --- WEAPON (2) ------- Light Assault Rifle > --- INVENTORY (20) --- Heavy Ion Engine Heavy Ion Engine High-capacity Storage Unit Large Battery (300) Large Matter Pod (150) Improved Terrain Scanner Hacking Suite Light Assault Rifle Light Assault Rifle Light Assault Rifle Grenade Launcher Mini Grenade Launcher Mini Grenade Launcher Datajack Katana Peak State ------------ > --- POWER ------------ Fission Core > --- PROPULSION ------- Light Treads Wheel Compact Wheel > --- UTILITY ---------- High-capacity Storage Unit High-capacity Storage Unit Medium Armor Plating > --- WEAPON ----------- Autogun Mini Grenade Launcher > --- INVENTORY -------- Heavy Ion Engine Heavy Ion Engine Heat Sink High-capacity Storage Unit Large Battery Large Matter Pod Improved Terrain Scanner Hacking Suite EM Pulse Gun EM Pulse Gun Spread Laser Light Assault Rifle Light Assault Rifle Light Assault Rifle Light Assault Rifle Autogun Grenade Launcher Mini Grenade Launcher Datajack Katana [Rating: 19] Favorites ----------- Power Ion Engine Engine Ion Engine Power Core Fission Core Propulsion Light Treads Treads Light Treads Wheel Compact Wheel Utility High-capacity Storage Unit Device Heat Sink Storage High-capacity Storage Unit Protection Light Armor Plating Weapon Light Assault Rifle Energy Gun Medium Laser Ballistic Gun Light Assault Rifle Launcher Mini Grenade Launcher Build | -11 -10 -9 -9 ------- Run | Scr Mat Mat Min Slots Evolved 2 | . . 2 . Power . | . . . . Propulsion 1 | . . 1 . Utility 1 | . . 1 . Weapon . | . . . . Parts Attached 40 | 7 4 15 14 Power 6 | 1 . 3 2 Engine 4 | 1 . 3 . Core 2 | . . . 2 Reactor . | . . . . Propulsion 9 | 2 . 5 2 Treads 4 | 2 . 2 . Leg . | . . . . Wheel 5 | . . 3 2 Hover . | . . . . Flight . | . . . . Utility 10 | 2 3 3 2 Device 3 | . . 2 1 Storage 5 | 2 3 . . Processor . | . . . . Hackware . | . . . . Protection 2 | . . 1 1 Artifact . | . . . . Weapon 15 | 2 1 4 8 Energy Gun 6 | 1 . 2 3 Energy Cannon . | . . . . Ballistic Gun 8 | 1 1 2 4 Ballistic Cannon . | . . . . Launcher 1 | . . . 1 Special Weapon . | . . . . Impact Weapon . | . . . . Slashing Weapon . | . . . . Piercing Weapon . | . . . . Special Melee Weapon . | . . . . Unidentified Prototypes 1 | . . 1 . Parts Lost 20 | . . 8 12 Power 3 | . . 2 1 Propulsion 6 | . . 3 3 Utility 3 | . . 1 2 Weapon 8 | . . 2 6 Highest Loss Streak 8 | . . 3 8 Average Slot Usage (%) 94 | . 100 94 88 Engine 11 | . 14 10 8 Treads 17 | . 28 13 14 Wheel 12 | . . 19 11 Device 4 | . . 4 8 Storage 23 | . 28 22 22 Protection 1 | . . 2 1 Energy Gun 4 | . 8 5 . Ballistic Gun 17 | . 19 16 18 Naked Turns . | . . . . Heaviest Build 85 | 16 71 77 85 Greatest Support 40 | 40 40 26 40 Greatest Overweight (x) 28 | . 1 7 28 Average Overweight (x) 2 | . . 2 3 Largest Inventory Capacity 20 | 8 20 20 20 Average Capacity 17 | 6 13 20 20 Most Carried 20 | 6 14 20 20 Average Carried 13 | 3 10 15 18 Final Capacity 20 | 8 20 20 20 Final Carried 20 | 6 14 20 15 Class Distribution -------------------- 75% | Hauler-Mutant 24% | Mutant Dominant Class ---------------- Mutant | -10/Materials Hauler-Mutant | -9/Materials Hauler-Mutant | -9/Mines Resources | -11 -10 -9 -9 ----------- Run | Scr Mat Mat Min Matter Collected 1117 | 275 212 219 411 Remotely . | . . . . Salvage Created 1403 | 50 297 707 349 Parts 87 | 2 18 38 29 Haulers Intercepted 3 | . 1 2 . Recyclers Shooed . | . . . . Parts Field Recycled . | . . . . Retrieved Matter . | . . . . Parts Self-Destructed . | . . . . Prevented . | . . . . Kills | -11 -10 -9 -9 ------- Run | Scr Mat Mat Min Combat Hostiles Destroyed 41 | . 5 17 19 Guns 35 | . 5 17 13 AOE 6 | . . . 6 Classes Destroyed 11 | 1 3 3 4 Worker 1 | . . . 1 Hauler 3 | . 1 2 . Recycler 1 | 1 . . . Operator 2 | . . 2 . Watcher 2 | . 2 . . Swarmer 16 | . . 6 10 Grunt 16 | . 5 8 3 Duelist 1 | . . . 1 Sentry 3 | . . 3 . Demolisher 2 | . . . 2 Assembled 5 | . . . 5 Best Kill Streak 5 | 1 3 3 5 Combat Bots Only 5 | . 3 3 5 Max Kills in Single Turn 3 | 1 1 1 3 Gunslinging . | . . . . Exploded 2 | . . . 2 Melee . | . . . . Uniques/NPCs Destroyed . | . . . . Combat | -11 -10 -9 -9 -------- Run | Scr Mat Mat Min Damage Taken 2360 | . 188 840 1332 Core 429 | . 29 97 303 Absorbed by Shields . | . . . . Core Remaining (%) 94 | 100 88 . . Volleys Fired 164 | 5 27 76 56 Largest 2 | 2 2 2 2 Hottest 90 | 70 70 90 88 Shots Fired 314 | 10 53 151 100 Gun 308 | 10 53 151 94 Cannon . | . . . . Launcher 6 | . . . 6 Special . | . . . . Kinetic 249 | 5 32 122 90 Thermal 56 | 5 21 29 1 Explosive 6 | . . . 6 Electromagnetic 3 | . . . 3 Robot Hit Streak 19 | 8 19 13 5 Robot Miss Streak 8 | 1 4 8 5 Penetration Max . | . . . . Secondary Targets 5 | . 1 . 4 Max Gunslinging Chain 1 | . 1 . 1 Shots Hit Robots 182 | 8 34 89 51 Core Hits 95 | 2 17 42 34 Critical Hits 1 | . . 1 . Critical Kills . | . . . . Critical Parts Destroyed 1 | . . 1 . Melee Attacks . | . . . . Impact . | . . . . Slashing . | . . . . Piercing . | . . . . Sneak Attacks . | . . . . Combat Hostiles . | . . . . Follow-up Attacks . | . . . . Damage Inflicted 2530 | 86 371 874 1199 Guns 1952 | 86 371 874 621 Cannons . | . . . . Explosions 578 | . . . 578 Melee . | . . . . Ramming . | . . . . Kinetic 1406 | 34 169 624 579 Thermal 522 | 52 202 250 18 Explosive 578 | . . . 578 Electromagnetic 24 | . . . 24 Impact . | . . . . Slashing . | . . . . Piercing . | . . . . Highest Corruption 1 | . 1 . . Average Corruption 1 | . 1 . . Corruption Purged . | . . . . Effects 1 | . 1 . . Message Errors 1 | . 1 . . Overload Shots . | . . . . Overflow Damage 15 | . . . 15 Projectiles . | . . . . Explosions 15 | . . . 15 Melee . | . . . . Knockbacks . | . . . . Impact . | . . . . Kinetic . | . . . . Secondary . | . . . . Self-Inflicted Damage 81 | . . . 81 Shots 2 | . . . 2 Rammed . | . . . . Targets Rammed . | . . . . Kicked . | . . . . Crushed . | . . . . Highest Temperature 121 | 50 121 117 22 Average Temperature 40 | 24 54 31 15 Received Heat Transfer 435 | . 108 273 54 Siege Activations . | . . . . Robots Corrupted . | . . . . Combat Hostiles . | . . . . Parts Fried . | . . . . Impact Corruptions . | . . . . Robots Melted . | . . . . Combat Hostiles . | . . . . Parts Melted 2 | . . 2 . Heat Transferred 1493 | 148 592 728 25 Parts Sabotaged . | . . . . Parts Stolen . | . . . . Parts Stripped . | . . . . Power Chain Reactions . | . . . . Missiles Intercepted . | . . . . Alert | -11 -10 -9 -9 ------- Run | Scr Mat Mat Min Peak Influence 330 | 5 181 285 330 Average Influence 133 | 2 87 137 208 Maximum Alert Level 1 | . . 1 1 Low Security (%) 73 | 100 100 73 42 Level 1 26 | . . 26 57 Level 2 . | . . . . Level 3 . | . . . . Level 4 . | . . . . Level 5 . | . . . . High Security . | . . . . Max Security . | . . . . Squads Dispatched 5 | . 1 3 1 Investigation 2 | . 1 1 . Extermination . | . . . . Reinforcement 3 | . . 2 1 Assault . | . . . . Garrison . | . . . . Intercept . | . . . . Construction Impeded 1 | . . . 1 Haulers Reinforced . | . . . . Stealth | -11 -10 -9 -9 --------- Run | Scr Mat Mat Min Distress Signals . | . . . . Communications Jammed . | . . . . Distress Signals . | . . . . Times Spotted 67 | . 9 33 25 Peak Tracking Total 8 | . 3 6 8 Tactical Retreats 8 | . . 4 4 Traps | -11 -10 -9 -9 ------- Run | Scr Mat Mat Min Traps Triggered 2 | . 1 1 . Indirectly . | . . . . Trap Hack Attempts . | . . . . Triggered . | . . . . Disarmed . | . . . . Reprogrammed . | . . . . Reused . | . . . . Traps Extracted . | . . . . Installed . | . . . . Triggered . | . . . . Machines | -11 -10 -9 -9 ---------- Run | Scr Mat Mat Min Machines Disabled 1 | . . . 1 Max in Single Turn 1 | . . . 1 Machines Sabotaged . | . . . . Garrisons Compromised . | . . . . Overloaded Fab Kills . | . . . . Fab Network Shutdowns . | . . . . Hacking | -11 -10 -9 -9 --------- Run | Scr Mat Mat Min Machines Accessed 3 | . 2 . 1 Terminals 3 | . 2 . 1 Fabricators . | . . . . Repair Stations . | . . . . Recycling Units . | . . . . Scanalyzers . | . . . . Garrison Access . | . . . . Total Hacks 9 | . 7 . 2 Successful 3 | . 2 . 1 Failed 6 | . 5 . 1 Catastrophic 1 | . 1 . . Database Lockouts . | . . . . Manual 6 | . 6 . . Terminals 9 | . 7 . 2 Fabricators . | . . . . Repair Stations . | . . . . Recycling Units . | . . . . Scanalyzers . | . . . . Garrison Access . | . . . . Terminal Hacks 3 | . 2 . 1 Part Schematic 1 | . 1 . . Zone Layout 2 | . 1 . 1 Fabricator Hacks . | . . . . Repair Station Hacks . | . . . . Recycling Unit Hacks . | . . . . Scanalyzer . | . . . . Garrison Access Hacks . | . . . . Unauthorized Hacks . | . . . . Terminals . | . . . . Fabricators . | . . . . Repair Stations . | . . . . Recycling Units . | . . . . Scanalyzers . | . . . . Garrison Access . | . . . . Data Cores Recovered . | . . . . Used . | . . . . Hacking Detections 3 | . 2 . 1 Full Trace Events 1 | . 1 . . Feedback Events 1 | . 1 . . Corruption 1 | . 1 . . Feedback Blocked . | . . . . Robot Schematics Acquired . | . . . . Robots Built . | . . . . Matter . | . . . . Time . | . . . . Total Robot Build Rating . | . . . . Part Schematics Acquired 1 | . 1 . . Parts Built . | . . . . Matter . | . . . . Time . | . . . . Total Part Build Rating . | . . . . Parts Repaired . | . . . . Time . | . . . . Parts Recycled . | . . . . Recycled Matter . | . . . . Retrieved Matter . | . . . . Retrieved Components . | . . . . Parts Scanalyzed . | . . . . Part Schematics Acquired . | . . . . Parts Damaged . | . . . . Bothacking | -11 -10 -9 -9 ------------ Run | Scr Mat Mat Min Used RIF Installer . | . . . . Robots Hacked . | . . . . Non-combat . | . . . . Combat . | . . . . Robot Hacks Applied . | . . . . Relay Couplers Released . | . . . . Robots Rewired . | . . . . Allies Hacked . | . . . . Hacks Repelled . | . . . . Allies | -11 -10 -9 -9 -------- Run | Scr Mat Mat Min Total Allies 3 | . . . 3 Largest Group 3 | . . . 3 Highest-Rated Group 40 | . . . 40 Highest-Rated Ally 16 | . . . 16 Total Orders . | . . . . Ally Attacks 14 | . . . 14 Total Damage 130 | . . . 130 Kills 2 | . . . 2 Allies Corrupted . | . . . . Allies Melted . | . . . . Intel | -11 -10 -9 -9 ------- Run | Scr Mat Mat Min Robot Analysis Total . | . . . . Derelict Logs Recovered 1 | . . . 1 Drone Launches . | . . . . Drone Recoveries . | . . . . Exploration | -11 -10 -9 -9 ------------- Run | Scr Mat Mat Min Turns Passed 1929 | 133 471 845 480 Spaces Moved 945 | 67 232 448 198 Core 8 | 3 . . 5 Treads 299 | 64 232 . 3 Legs . | . . . . Wheels 638 | . . 448 190 Hover . | . . . . Flight . | . . . . Fastest Speed 50 | 50 160 110 110 Average Speed 140 | 155 165 117 156 Slowest Speed 1450 | 160 180 150 1450 Overloaded Moves . | . . . . Propulsion Burnouts . | . . . . Robots Hopped . | . . . . Cave-ins Triggered . | . . . . Exploration Rate (%) 29 | 5 43 29 39 Regions Visited 3 Branch Regions 1 Pre-discovered Areas . | . . . . Known Exits Taken . | . . . . Unknown Exits Taken 3 | 1 1 1 . Scrap Searched 1 | . . . 1 Spaces Dug 8 | . . . 8 Terrain Destroyed 47 | . . . 47 Melee . | . . . . Projectile . | . . . . AOE 47 | . . . 47 Actions | -11 -10 -9 -9 --------- Run | Scr Mat Mat Min Total 1287 | 84 272 642 289 Wait 77 | . 1 71 5 Move 942 | 66 231 447 198 Hop . | . . . . Pick Up 42 | 6 7 23 6 Fast Attach 13 | 7 . 2 4 Attach 17 | . . 10 7 Detach 2 | . . 1 1 Swap 10 | . 4 3 3 Drop 20 | . 2 9 9 Fire 164 | 5 27 76 56 Melee . | . . . . Ram . | . . . . Kick . | . . . . Crush . | . . . . Escape Stasis . | . . . . Rewire . | . . . . Trap . | . . . . Miscellaneous . | . . . . Route ------- -11/Scrapyard -10/Materials -9/Materials -9/Mines (discovered 1 exit: [*Mat]) History --------- Turn | Location | Event 15 | -11/Scrapyard | Discovered new exit (range 16) 134 | -11/Scrapyard | Entered Materials 317 | -10/Materials | Build established: Mutant 391 | -10/Materials | Discovered new exit (range 14) 605 | -10/Materials | Entered another Materials area 605 | -9/Materials | Evolved 2 slots: Propulsion x1, Utility x1 765 | -9/Materials | Build established: Hauler-Mutant 1345 | -9/Materials | Lost 3 parts (3n) 1384 | -9/Materials | Discovered new exit (range 7) 1450 | -9/Materials | Entered Mines 1457 | -9/Mines | Met a Derelict bent on vengeance 1479 | -9/Mines | Discovered new exit (range 19) 1636 | -9/Mines | Learned Materials security intel 1792 | -9/Mines | Assisted by bots powering up and referring to "LRC-V3" 1807 | -9/Mines | Assembled infested the area 1812 | -9/Mines | Assisted by a Guerilla fighting off Assembled 1828 | -9/Mines | Core integrity fell below 50% 1865 | -9/Mines | Core integrity fell below 20% 1901 | -9/Mines | Lost 8 parts (1p1n2u4w) 1930 | -9/Mines | Destroyed by as-87656 with Assembled Heavy Rifle Last Messages --------------- 01863_ U-05 Engineer lays Concrete. 01864_ U-05 Engineer builds a Wall. 01865_ The unstable cave ceiling collapses. 01866_ Heat Sink destroyed. 01866_ Spread Laser destroyed. 01868_ U-05 Engineer lays Concrete. 01870_ ALERT: Construction progress impeded, dispatching reinforcements to local area. 01870_ Autogun destroyed. 01872_ The unstable cave ceiling collapses. 01872_ U-05 Engineer destroyed. 01873_ D-53 Grenadier destroyed. 01876_ The unstable cave ceiling collapses. 01912_ K-01 Serf collects debris. 01913_ The unstable cave ceiling collapses. 01915_ K-01 Serf collects debris. 01918_ The unstable cave ceiling collapses. 01919_ K-01 Serf collects debris. 01927_ Autogun destroyed. 01929_ K-01 Serf collects debris. Map ----- +----------------------------------------------------+ | | | ???????????????????????????????? | | ???????????????????????????????? | | ???????????????????????????????? | | ????????????????????????#####??? | | ???????????????????????## ##?? | | ?????####??????????????# #?? | | ????## ####???????????# #?? | | ????# ########?????# ### | | ##### = ! ######## [=* | | # # = #### ## | | # ## ## #?## ## | | # ##*=## #### | | ##### ##= ### ### ## | | ???## #?####?## | | ???# #???????## | | ???# #####????????## | | ???## ##??????? ?????## | | ????## /##???????"""?????## | | ?????# ]#??????? """ #???# # | | ?????# #??????# """ #???## ## | | ?????# ####### #????####? | | ?????# ## # # #?????????? | | ?????# k ## # ##????????? | | ?????# ## # ## #????????? | | ?????# @ ! #????????? | | ?????# a #????????? | | ?????# # ### a ?????? | | ?????## # ?????? | | ?????## ## ## ??????? | | ??????## ##?? ??????? | | ???????#######???? ???????? | | ????????????????????## ???????? | | ???????????????????????????????? | | ???????????????????????????????? | | ???????????????????????????????? | | ???????????????????????????????? | | ???????????????????????????????? | | ???????????????????????????????? | | ???????????????????????????????? | | ???????????????????????????????? | | ???????????????????????????????? | | ???????????????????????????????? | | ???????????????????????????????? | | ???????????????????????????????? | | ???????????????????????????????? | | ???????????????????????????????? | | ???????????????????????????????? | | ???????????????????????????????? | | ???????????????????????????????? | +----------------------------------------------------+ Best States ------------- Heat Dissipation 38 Energy Generation 18 Energy Capacity 310 Matter Stores 300 Matter Capacity 300 Sight Range 16 Terrain Scan Density 10 Armor Coverage 225 Evasion (%) 40 Recoil Reduction 2 Item Schematics ----------------- Lgt. Armor Plating | -10/Materials | Hacked Robot Schematics ------------------ None Fabricated ------------ Nothing Alien Tech Used ----------------- None Achievements -------------- None Challenges ------------ None Game ------ Seed DynamicPoweredShotgun Manual? 0 Play Time 00:19:59 Cumulative 77.9 hours Start 2020.02.22 @ 22:51:48 End 2020.02.22 @ 23:09:59 Sessions 1 Manual Loads 0 Difficulty Rogue Special Mode None Game No. 46 Rogue 46 Adventurer 0 Explorer 0 Win Type - Total 0 Types 0/0/0/0/0/0/0 Lore% 39 Gallery% 62 Achievement% 46 Wizard Run 0 Options --------- ASCII 0 Keyboard 0 Movement Numpad Keybinds 0 Fullscreen 1 Font 18/SmallcapsGlow Map View 76x50 Tactical HUD 1 Map Filters NONE Filters NONE Steam 1 RUN: 02cb5a78-0942-47a8-8a90-425450995a34